fUSD/lending_fUSD_20240814
["ID","MTS","AMOUNT","RATE_DAILY","PERIOD"]
[334841602,1723607476523,-500.0,0.0001452,2]
[334841603,1723607476533,-676.11,0.0001452,2]
[334841604,1723607476544,-5350.32,0.0001452,2]
[334841605,1723607476554,-3896.23,0.0001452,2]
[334841606,1723607476564,-574.50480988,0.0001452,2]
[334841607,1723607476575,-677.37,0.0001452,2]
[334841608,1723607476585,-500.0,0.0001452,2]
[334841609,1723607476595,-7808.28,0.0001452,2]
[334841610,1723607476606,-500.0,0.0001452,2]
[334841611,1723607476616,-500.0,0.0001452,2]
[334841612,1723607476626,-1579.62,0.0001452,2]
[334841613,1723607476637,-2868.97,0.0001452,2]
[334841614,1723607476647,-2601.3,0.0001452,2]
[334841615,1723607476657,-670.24,0.0001452,2]
[334841616,1723607476667,-500.0,0.0001452,2]
[334841617,1723607476677,-2687.31,0.0001452,2]
[334841618,1723607476688,-2583.71,0.0001452,2]
[334841619,1723607476698,-519.38638743,0.0001452,2]
[334841620,1723607476709,-3504.73,0.0001452,2]
[334841621,1723607476720,-500.0,0.0001452,2]
[334841622,1723607476731,-3882.13,0.0001452,2]
[334841623,1723607476741,-500.0,0.0001452,2]
[334841624,1723607476751,-4107.19,0.0001452,2]
[334841625,1723607476761,-698.86,0.0001452,2]
[334841626,1723607476772,-786.88,0.0001452,2]
[334841627,1723607476783,-500.0,0.0001452,2]
[334841628,1723607476794,-500.0,0.0001452,2]
[334841629,1723607476804,-500.0,0.0001452,2]
[334841630,1723607476815,-2236.74,0.0001452,2]
[334841631,1723607476826,-500.0,0.0001452,2]
[334841632,1723607476837,-639.71,0.0001452,2]
[334841633,1723607476847,-1100.89,0.0001452,2]
[334841634,1723607476857,-500.0,0.0001452,2]
[334841635,1723607476867,-742.57,0.0001452,2]
[334841636,1723607476877,-500.0,0.0001452,2]
[334841637,1723607476889,-691.92,0.0001452,2]
[334841638,1723607476899,-1668.19,0.0001452,2]
[334841639,1723607476910,-500.0,0.0001452,2]
[334841640,1723607476920,-308.2957576,0.0001452,2]
[334841641,1723607476930,-8906.01,0.0001452,2]
[334841642,1723607476940,-3096.07,0.0001452,2]
[334841643,1723607476950,-688.31,0.0001452,2]
[334841644,1723607476960,-500.0,0.0001452,2]
[334841645,1723607476970,-500.0,0.0001452,2]
[334841646,1723607476980,-1386.58,0.0001452,2]
[334841647,1723607476990,-521.01,0.0001452,2]
[334841648,1723607477000,-2079.25,0.0001452,2]
[334841649,1723607477010,-3714.26,0.0001452,2]
[334841650,1723607477021,-305.27322152,0.0001452,2]
[334841651,1723607477031,-500.0,0.0001452,2]
[334841652,1723607477041,-500.0,0.0001452,2]
[334841653,1723607477051,-866.22,0.0001452,2]
[334841654,1723607477061,-7418.61,0.0001452,2]
[334841655,1723607477343,-500.0,0.0001452,2]
[334841656,1723607477355,-887.71,0.0001452,2]
[334841657,1723607477364,-500.0,0.0001452,2]
[334841658,1723607477374,-3269.23,0.0001452,2]
[334841659,1723607477383,-500.0,0.0001452,2]
[334841660,1723607477393,-1076.95,0.0001452,2]
[334841661,1723607477402,-707.28,0.0001452,2]
[334841662,1723607477411,-5659.08,0.0001452,2]
[334841663,1723607477421,-2929.81,0.0001452,2]
[334841664,1723607477431,-500.0,0.0001452,2]
[334841665,1723607477440,-2501.36,0.0001452,2]
[334841666,1723607477450,-1043.59,0.0001452,2]
[334841667,1723607477459,-500.0,0.0001452,2]
[334841668,1723607477468,-500.0,0.0001452,2]
[334841669,1723607477478,-3153.8,0.0001452,2]
[334841670,1723607477487,-500.0,0.0001452,2]
[334841671,1723607477496,-1497.14,0.0001452,2]
[334841672,1723607477506,-3648.88,0.0001452,2]
[334841673,1723607477515,-4369.58,0.0001452,2]
[334841674,1723607477528,-500.0,0.0001452,2]
[334841675,1723607477537,-500.0,0.0001452,2]
[334841676,1723607477547,-10558.66,0.0001452,2]
[334841677,1723607477556,-3991.69,0.0001452,2]
[334841678,1723607477565,-617.95,0.0001452,2]
[334841679,1723607477575,-543.63,0.0001452,2]
[334841680,1723607477585,-2141.4,0.0001452,2]
[334841681,1723607477594,-2617.38,0.0001452,2]
[334841682,1723607477604,-4898.32,0.0001452,2]
[334841683,1723607477613,-500.0,0.0001452,2]
[334841684,1723607477623,-1048.11,0.0001452,2]
[334841685,1723607477633,-508.15823074,0.0001452,2]
[334841686,1723607477642,-2200.01,0.0001452,2]
[334841687,1723607477652,-500.0,0.0001452,2]
[334841688,1723607477662,-680.5,0.0001452,2]
[334841689,1723607477672,-525.19,0.0001452,2]
[334841690,1723607477681,-3069.08,0.0001452,2]
[334841691,1723607477691,-1101.33,0.0001452,2]
[334841692,1723607477700,-4095.44,0.0001452,2]
[334841693,1723607477710,-3093.95,0.0001452,2]
[334841694,1723607477720,-1974.21,0.0001452,2]
[334841695,1723607477729,-500.0,0.0001452,2]
[334841696,1723607477739,-500.0,0.0001452,2]
[334841697,1723607477749,-1153.12,0.0001452,2]
[334841698,1723607477758,-500.0,0.0001452,2]
[334841699,1723607477768,-1698.84,0.0001452,2]
[334841700,1723607477777,-1954.47,0.0001452,2]
[334841701,1723607477786,-500.0,0.0001452,2]
[334841702,1723607477795,-500.0,0.0001452,2]
[334841703,1723607477805,-500.0,0.0001452,2]
[334841704,1723607477814,-1008.04,0.0001452,2]
[334841705,1723607477824,-1831.82,0.0001452,2]
[334841706,1723607477833,-500.0,0.0001452,2]
[334841707,1723607477842,-2865.91,0.0001452,2]
[334841708,1723607477853,-15566.61,0.0001452,2]
[334841709,1723607477862,-686.68,0.0001452,2]
[334841710,1723607477872,-5487.49,0.0001452,2]
[334841711,1723607477881,-500.0,0.0001452,2]
[334841712,1723607477892,-1963.56,0.0001452,2]
[334841713,1723607477901,-500.0,0.0001452,2]
[334841714,1723607477910,-597.8,0.0001452,2]
[334841715,1723607477919,-500.0,0.0001452,2]
[334841716,1723607477929,-500.0,0.0001452,2]
[334841717,1723607477939,-500.0,0.0001452,2]
[334841718,1723607477949,-262.59832335,0.0001452,2]
[334841719,1723607477958,-1884.73,0.0001452,2]
[334841720,1723607477968,-500.0,0.0001452,2]
[334841721,1723607477977,-777.86053,0.0001465,2]
[334841722,1723607477986,-273.6,0.00014724,2]
[334841723,1723607477996,-731.31,0.00014794,2]
[334841724,1723607478005,-500.0,0.00014794,2]
[334841725,1723607478015,-688.3,0.00014794,2]
[334841726,1723607478025,-508.14,0.00014794,2]
[334841727,1723607478035,-500.0,0.00014794,2]
[334841728,1723607478045,-563.09,0.00014794,2]
[334841729,1723607478055,-500.0,0.00014794,2]
[334841730,1723607478064,-712.92,0.00014794,2]
[334841731,1723607478074,-500.0,0.00014794,2]
[334841732,1723607478083,-412.19226354,0.00014794,2]
[334841733,1723607478093,-500.0,0.00014794,2]
[334841734,1723607478103,-500.0,0.00014794,2]
[334841735,1723607478113,-902.09,0.00014794,2]
[334841736,1723607478125,-500.0,0.00014794,2]
[334841737,1723607478134,-500.0,0.00014794,2]
[334841738,1723607478143,-500.0,0.00014794,2]
[334841739,1723607478153,-701.14,0.00014794,2]
[334841740,1723607478163,-506.71,0.00014794,2]
[334841741,1723607478172,-1472.55,0.00014794,2]
[334841742,1723607478182,-935.07,0.00014794,2]
[334841743,1723607478192,-500.0,0.00014794,2]
[334841744,1723607478203,-500.0,0.00014794,2]
[334841745,1723607478213,-751.76,0.00014794,2]
[334841746,1723607478222,-1022.73,0.00014794,2]
[334841747,1723607478233,-1673.07,0.00014794,2]
[334841748,1723607478242,-891.04,0.00014794,2]
[334841749,1723607478252,-622.07,0.00014794,2]
[334841750,1723607478262,-781.14,0.00014794,2]
[334841751,1723607478271,-500.0,0.00014794,2]
[334841752,1723607478281,-500.0,0.00014794,2]
[334841753,1723607478292,-500.0,0.00014794,2]
[334841754,1723607478302,-500.0,0.00014794,2]
[334841755,1723607478311,-500.0,0.00014794,2]
[334841756,1723607478320,-500.0,0.00014794,2]
[334841757,1723607478330,-500.0,0.00014794,2]
[334841758,1723607478340,-500.0,0.00014794,2]
[334841759,1723607478349,-547.55,0.00014794,2]
[334841760,1723607478359,-812.22,0.00014794,2]
[334841761,1723607478369,-500.0,0.00014794,2]
[334841762,1723607478378,-199.93103316,0.00014794,2]
[334841763,1723607478388,-637.41,0.00014794,2]
[334841764,1723607478398,-1070.95,0.00014794,2]
[334841765,1723607478407,-1063.75,0.00014794,2]
[334841766,1723607478416,-727.22,0.00014794,2]
[334841767,1723607478426,-500.0,0.00014794,2]
[334841768,1723607478436,-500.0,0.00014794,2]
[334841769,1723607478445,-1698.66,0.00014794,2]
[334841770,1723607478454,-1060.55,0.00014794,2]
[334841771,1723607478465,-500.0,0.00014794,2]
[334841772,1723607478474,-500.0,0.00014794,2]
[334841773,1723607478483,-500.0,0.00014794,2]
[334841774,1723607478493,-500.0,0.00014794,2]
[334841775,1723607478502,-500.0,0.00014794,2]
[334841776,1723607478511,-799.52,0.00014794,2]
[334841777,1723607478521,-500.0,0.00014794,2]
[334841778,1723607478530,-500.0,0.00014794,2]
[334841779,1723607478540,-500.0,0.00014794,2]
[334841780,1723607478550,-1647.39,0.00014794,2]
[334841781,1723607478559,-574.58170719,0.00014794,2]
[334841782,1723607478569,-612.24,0.00014794,2]
[334841783,1723607478578,-500.0,0.00014794,2]
[334841784,1723607478588,-500.0,0.00014794,2]
[334841785,1723607478597,-500.0,0.00014794,2]
[334841786,1723607478606,-500.0,0.00014794,2]
[334841787,1723607478617,-611.16,0.00014794,2]
[334841788,1723607478626,-500.0,0.00014794,2]
[334841789,1723607478637,-500.0,0.00014794,2]
[334841790,1723607478646,-1328.0,0.00014794,2]
[334841791,1723607478656,-500.0,0.00014794,2]
[334841792,1723607478665,-1488.34,0.00014794,2]
[334841793,1723607478674,-609.98,0.00014794,2]
[334841794,1723607478684,-734.92,0.00014794,2]
[334841795,1723607478693,-518.07,0.00014794,2]
[334841796,1723607478703,-500.0,0.00014794,2]
[334841797,1723607478712,-1665.35,0.00014794,2]
[334841798,1723607478722,-500.0,0.00014794,2]
[334841799,1723607478732,-500.0,0.00014794,2]
[334841800,1723607478741,-1119.92,0.00014794,2]
[334841801,1723607478751,-500.0,0.00014794,2]
[334841802,1723607478761,-1027.86,0.00014794,2]
[334841803,1723607478770,-507.19,0.00014794,2]
[334841804,1723607478779,-500.0,0.00014794,2]
[334841805,1723607478790,-500.0,0.00014794,2]
[334841806,1723607478799,-500.0,0.00014794,2]
[334841807,1723607478809,-583.56,0.00014794,2]
[334841808,1723607478818,-500.0,0.00014794,2]
[334841809,1723607478827,-1665.72,0.00014794,2]
[334841810,1723607478837,-500.0,0.00014794,2]
[334841811,1723607478847,-543.84,0.00014794,2]
[334841812,1723607478856,-500.0,0.00014794,2]
[334841813,1723607478866,-703.07,0.00014794,2]
[334841814,1723607478876,-667.07,0.00014794,2]
[334841815,1723607478886,-731.8,0.00014794,2]
[334841816,1723607478899,-500.0,0.00014794,2]
[334841817,1723607478909,-500.0,0.00014794,2]
[334841818,1723607478919,-500.0,0.00014794,2]
[334841819,1723607478928,-654.55,0.00014794,2]
[334841820,1723607478938,-1474.25,0.00014794,2]
[334841821,1723607478948,-935.71,0.00014794,2]
[334841822,1723607478957,-500.0,0.00014794,2]
[334841823,1723607478967,-795.43,0.00014794,2]
[334841824,1723607478977,-500.0,0.00014794,2]
[334841825,1723607478987,-500.0,0.00014794,2]
[334841826,1723607478997,-1291.26,0.00014794,2]
[334841827,1723607479008,-500.0,0.00014794,2]
[334841828,1723607479017,-1621.49,0.00014794,2]
[334841829,1723607479027,-615.46849478,0.00014794,2]
[334841830,1723607479037,-500.0,0.00014794,2]
[334841831,1723607479046,-1600.49,0.00014794,2]
[334841832,1723607479056,-553.51,0.00014794,2]
[334841833,1723607479065,-1806.84,0.00014794,2]
[334841834,1723607479075,-712.18,0.00014794,2]
[334841835,1723607479086,-521.1,0.00014794,2]
[334841836,1723607479095,-1895.99,0.00014794,2]
[334841837,1723607479105,-1723.01,0.00014794,2]
[334841838,1723607479115,-1877.59,0.00014794,2]
[334841839,1723607479129,-500.0,0.00014794,2]
[334841840,1723607479138,-500.0,0.00014794,2]
[334841841,1723607479148,-631.87,0.00014794,2]
[334841842,1723607479157,-843.0,0.00014794,2]
[334841843,1723607479167,-997.63,0.00014794,2]
[334841844,1723607479176,-500.0,0.00014794,2]
[334841845,1723607479186,-500.0,0.00014794,2]
[334841846,1723607479196,-500.0,0.00014794,2]
[334841847,1723607479206,-500.0,0.00014794,2]
[334841848,1723607479216,-500.0,0.00014794,2]
[334841849,1723607479226,-500.0,0.00014794,2]
[334841850,1723607479235,-1073.69,0.00014794,2]
[334841851,1723607479244,-903.82,0.00014794,2]
[334841852,1723607479254,-1215.4,0.00014794,2]
[334841853,1723607479263,-674.42,0.00014794,2]
[334841854,1723607479273,-1082.37,0.00014794,2]
[334841855,1723607479283,-1982.45,0.00014794,2]
[334841856,1723607479292,-2111.74,0.00014794,2]
[334841857,1723607479301,-1233.9,0.00014794,2]
[334841858,1723607479311,-3815.52,0.00014794,2]
[334841859,1723607479321,-500.0,0.00014794,2]
[334841860,1723607479330,-848.59,0.00014794,2]
[334841861,1723607479340,-2334.24,0.00014794,2]
[334841862,1723607479350,-718.84,0.00014794,2]
[334841863,1723607479359,-500.0,0.00014794,2]
[334841864,1723607479369,-1454.45,0.00014794,2]
[334841865,1723607479378,-500.0,0.00014794,2]
[334841866,1723607479388,-996.86,0.00014794,2]
[334841867,1723607479398,-500.0,0.00014794,2]
[334841868,1723607479408,-1146.42,0.00014794,2]
[334841869,1723607479417,-1413.89,0.00014794,2]
[334841870,1723607479426,-1306.14,0.00014794,2]
[334841871,1723607479436,-500.0,0.00014794,2]
[334841872,1723607479446,-851.44,0.00014794,2]
[334841873,1723607479455,-2059.77,0.00014794,2]
[334841874,1723607479464,-1108.11,0.00014794,2]
[334841875,1723607479473,-592.2,0.00014794,2]
[334841876,1723607479483,-701.35,0.00014794,2]
[334841877,1723607479492,-863.81,0.00014794,2]
[334841878,1723607479502,-842.9,0.00014794,2]
[334841879,1723607479511,-1173.01,0.00014794,2]
[334841880,1723607479520,-500.0,0.00014794,2]
[334841881,1723607479530,-640.01,0.00014794,2]
[334841882,1723607479539,-500.0,0.00014794,2]
[334841883,1723607479548,-500.0,0.00014794,2]
[334841884,1723607479558,-500.0,0.00014794,2]
[334841885,1723607479567,-1366.52,0.00014794,2]
[334841886,1723607479576,-1120.85,0.00014794,2]
[334841887,1723607479585,-500.0,0.00014794,2]
[334841888,1723607479595,-500.0,0.00014794,2]
[334841889,1723607479604,-666.14,0.00014794,2]
[334841890,1723607479613,-527.01,0.00014794,2]
[334841891,1723607479623,-1258.07,0.00014794,2]
[334841892,1723607479633,-1024.41,0.00014794,2]
[334841893,1723607479742,-500.0,0.00014794,2]
[334841894,1723607479752,-500.0,0.00014794,2]
[334841895,1723607479761,-2173.7,0.00014794,2]
[334841896,1723607479770,-1345.95,0.00014794,2]
[334841897,1723607479780,-984.97,0.00014794,2]
[334841898,1723607479789,-2468.39,0.00014794,2]
[334841899,1723607479799,-500.0,0.00014794,2]
[334841900,1723607479808,-500.0,0.00014794,2]
[334841901,1723607479818,-737.25,0.00014794,2]
[334841902,1723607479827,-990.66,0.00014794,2]
[334841903,1723607479836,-836.37,0.00014794,2]
[334841904,1723607479846,-652.06,0.00014794,2]
[334841905,1723607479855,-1124.45,0.00014794,2]
[334841906,1723607479865,-617.29,0.00014794,2]
[334841907,1723607479874,-657.84,0.00014794,2]
[334841908,1723607479883,-1513.15,0.00014794,2]
[334841909,1723607479893,-1128.09,0.00014794,2]
[334841910,1723607479902,-500.0,0.00014794,2]
[334841911,1723607479913,-1593.05,0.00014794,2]
[334841912,1723607479923,-1465.45,0.00014794,2]
[334841913,1723607479932,-512.37,0.00014794,2]
[334841914,1723607479941,-1433.68,0.00014794,2]
[334841915,1723607479952,-401.45226074,0.00014794,2]
[334841916,1723607479962,-500.0,0.00014794,2]
[334841917,1723607479972,-1436.38,0.00014794,2]
[334841918,1723607479981,-566.62,0.00014794,2]
[334841919,1723607479990,-501.09628463,0.00014794,2]
[334841920,1723607479999,-500.0,0.00014794,2]
[334841921,1723607480008,-500.0,0.00014794,2]
[334841922,1723607480018,-980.27,0.00014794,2]
[334841923,1723607480027,-1757.62,0.00014794,2]
[334841924,1723607480036,-1090.22,0.00014794,2]
[334841925,1723607480047,-2446.57,0.00014794,2]
[334841926,1723607480057,-2344.16,0.00014794,2]
[334841927,1723607480066,-500.0,0.00014794,2]
[334841928,1723607480076,-500.0,0.00014794,2]
[334841929,1723607480086,-500.0,0.00014794,2]
[334841930,1723607480096,-1919.8,0.00014794,2]
[334841931,1723607480106,-850.36,0.00014794,2]
[334841932,1723607480118,-743.85,0.00014794,2]
[334841933,1723607480129,-500.0,0.00014794,2]
[334841934,1723607480141,-713.35,0.00014794,2]
[334841935,1723607480150,-2805.57,0.00014794,2]
[334841936,1723607480160,-536.68,0.00014794,2]
[334841937,1723607480171,-654.34,0.00014794,2]
[334841938,1723607480182,-500.0,0.00014794,2]
[334841939,1723607480191,-500.0,0.00014794,2]
[334841940,1723607480202,-557.78,0.00014794,2]
[334841941,1723607480212,-738.54,0.00014794,2]
[334841942,1723607480222,-500.0,0.00014794,2]
[334841943,1723607480232,-1222.0,0.00014794,2]
[334841944,1723607480242,-3268.85,0.00014794,2]
[334841945,1723607480252,-1232.17,0.00014794,2]
[334841946,1723607480261,-756.0,0.00014794,2]
[334841947,1723607480271,-759.17,0.00014794,2]
[334841948,1723607480281,-1276.5,0.00014794,2]
[334841949,1723607480291,-1227.19,0.00014794,2]
[334841950,1723607480300,-660.75,0.00014794,2]
[334841951,1723607480310,-500.0,0.00014794,2]
[334841952,1723607480319,-1099.44,0.00014794,2]
[334841953,1723607480329,-2090.28,0.00014794,2]
[334841954,1723607480339,-500.0,0.00014794,2]
[334841955,1723607480348,-500.0,0.00014794,2]
[334841956,1723607480358,-508.15,0.00014794,2]
[334841957,1723607480368,-793.09,0.00014794,2]
[334841958,1723607480378,-500.0,0.00014794,2]
[334841959,1723607480389,-351.3840902,0.00014794,2]
[334841960,1723607480399,-500.0,0.00014794,2]
[334841961,1723607480409,-500.0,0.00014794,2]
[334841962,1723607480419,-1244.25,0.00014794,2]
[334841963,1723607480431,-808.2,0.00014794,2]
[334841964,1723607480441,-1870.71,0.00014794,2]
[334841965,1723607480451,-500.0,0.00014794,2]
[334841966,1723607480462,-1020.02,0.00014794,2]
[334841967,1723607480472,-500.0,0.00014794,2]
[334841968,1723607480481,-1386.1,0.00014794,2]
[334841969,1723607480491,-732.86,0.00014794,2]
[334841970,1723607480501,-500.0,0.00014794,2]
[334841971,1723607480510,-500.0,0.00014794,2]
[334841972,1723607480520,-500.0,0.00014794,2]
[334841973,1723607480529,-1778.14,0.00014794,2]
[334841974,1723607480538,-400.0,0.00014794,2]
[334841975,1723607480548,-1254.8,0.00014794,2]
[334841976,1723607480557,-2294.9,0.00014794,2]
[334841977,1723607480567,-500.0,0.00014794,2]
[334841978,1723607480577,-1685.71,0.00014794,2]
[334841979,1723607480586,-1045.4,0.00014794,2]
[334841980,1723607480595,-769.79,0.00014794,2]
[334841981,1723607480604,-500.0,0.00014794,2]
[334841982,1723607480614,-829.12,0.00014794,2]
[334841983,1723607480623,-1819.06,0.00014794,2]
[334841984,1723607480632,-584.66,0.00014794,2]
[334841985,1723607480643,-865.12,0.00014794,2]
[334841986,1723607480652,-1828.3,0.00014794,2]
[334841987,1723607480661,-1487.62,0.00014794,2]
[334841988,1723607480670,-1120.95,0.00014794,2]
[334841989,1723607480679,-1122.91,0.00014794,2]
[334841990,1723607480688,-862.4,0.00014794,2]
[334841991,1723607480697,-849.24,0.00014794,2]
[334841992,1723607480707,-1564.47,0.00014794,2]
[334841993,1723607480716,-500.0,0.00014794,2]
[334841994,1723607480726,-866.92,0.00014794,2]
[334841995,1723607480735,-500.0,0.00014794,2]
[334841996,1723607480744,-1212.45,0.00014794,2]
[334841997,1723607480753,-2613.0,0.00014794,2]
[334841998,1723607480763,-1055.57,0.00014794,2]
[334841999,1723607480772,-1994.05,0.00014794,2]
[334842000,1723607480781,-857.51,0.00014794,2]
[334842001,1723607480790,-1338.26,0.00014794,2]
[334842002,1723607480799,-1351.32,0.00014794,2]
[334842003,1723607480808,-500.0,0.00014794,2]
[334842004,1723607480817,-500.0,0.00014794,2]
[334842005,1723607480826,-2029.71,0.00014794,2]
[334842006,1723607480835,-1111.34,0.00014794,2]
[334842007,1723607480844,-500.0,0.00014794,2]
[334842008,1723607480853,-3777.94,0.00014794,2]
[334842009,1723607480863,-500.0,0.00014794,2]
[334842010,1723607480872,-500.0,0.00014794,2]
[334842011,1723607480881,-921.58,0.00014794,2]
[334842012,1723607480891,-500.0,0.00014794,2]
[334842013,1723607480899,-689.07,0.00014794,2]
[334842014,1723607480907,-833.34,0.00014794,2]
[334842015,1723607480916,-500.0,0.00014794,2]
[334842016,1723607480925,-500.0,0.00014794,2]
[334842017,1723607480934,-589.77,0.00014794,2]
[334842018,1723607480944,-568.61,0.00014794,2]
[334842019,1723607480953,-500.0,0.00014794,2]
[334842020,1723607480962,-500.0,0.00014794,2]
[334842021,1723607480971,-1554.5,0.00014794,2]
[334842022,1723607480982,-500.0,0.00014794,2]
[334842023,1723607480991,-1921.5,0.00014794,2]
[334842024,1723607481000,-500.0,0.00014794,2]
[334842025,1723607481010,-500.0,0.00014794,2]
[334842026,1723607481024,-783.79,0.00014794,2]
[334842027,1723607481033,-2631.07,0.00014794,2]
[334842028,1723607481043,-500.0,0.00014794,2]
[334842029,1723607481052,-500.0,0.00014794,2]
[334842030,1723607481061,-505.7,0.00014794,2]
[334842031,1723607481070,-500.0,0.00014794,2]
[334842032,1723607481079,-573.43,0.00014794,2]
[334842033,1723607481088,-1200.87,0.00014794,2]
[334842034,1723607481098,-500.0,0.00014794,2]
[334842035,1723607481109,-1361.66,0.00014794,2]
[334842036,1723607481119,-2549.22,0.00014794,2]
[334842037,1723607481129,-500.0,0.00014794,2]
[334842038,1723607481140,-592.75,0.00014794,2]
[334842039,1723607481149,-1917.84,0.00014794,2]
[334842040,1723607481158,-965.13,0.00014794,2]
[334842041,1723607481169,-1397.22,0.00014794,2]
[334842042,1723607481178,-500.0,0.00014794,2]
[334842043,1723607481187,-1460.11,0.00014794,2]
[334842044,1723607481196,-2325.52,0.00014794,2]
[334842045,1723607481207,-500.0,0.00014794,2]
[334842046,1723607481216,-500.0,0.00014794,2]
[334842047,1723607481226,-844.41,0.00014794,2]
[334842048,1723607481235,-764.1,0.00014794,2]
[334842049,1723607481244,-1274.82,0.00014794,2]
[334842050,1723607481253,-1259.41,0.00014794,2]
[334842051,1723607481262,-500.0,0.00014794,2]
[334842052,1723607481271,-500.0,0.00014794,2]
[334842053,1723607481280,-500.0,0.00014794,2]
[334842054,1723607481289,-851.27,0.00014794,2]
[334842055,1723607481299,-929.25,0.00014794,2]
[334842056,1723607481308,-2127.39,0.00014794,2]
[334842057,1723607481317,-883.88,0.00014794,2]
[334842058,1723607481326,-512.16,0.00014794,2]
[334842059,1723607481335,-589.33,0.00014794,2]
[334842060,1723607481344,-1891.32,0.00014794,2]
[334842061,1723607481353,-500.0,0.00014794,2]
[334842062,1723607481362,-1630.74,0.00014794,2]
[334842063,1723607481371,-2624.85,0.00014794,2]
[334842064,1723607481381,-2240.02,0.00014794,2]
[334842065,1723607481390,-2114.43,0.00014794,2]
[334842066,1723607481399,-500.0,0.00014794,2]
[334842067,1723607481408,-2489.36,0.00014794,2]
[334842068,1723607481417,-1834.05,0.00014794,2]
[334842069,1723607481426,-514.91,0.00014794,2]
[334842070,1723607481435,-530.28,0.00014794,2]
[334842071,1723607481444,-632.20137168,0.00014794,2]
[334842072,1723607481453,-657.56,0.00014794,2]
[334842073,1723607481463,-347.81117166,0.00014794,2]
[334842074,1723607481472,-580.46,0.00014794,2]
[334842075,1723607481482,-1292.57,0.00014794,2]
[334842076,1723607481492,-500.0,0.00014794,2]
[334842077,1723607481501,-2155.23,0.00014794,2]
[334842078,1723607481510,-729.49,0.00014794,2]
[334842079,1723607481519,-803.11,0.00014794,2]
[334842080,1723607481528,-500.0,0.00014794,2]
[334842081,1723607481538,-784.66,0.00014794,2]
[334842082,1723607481547,-500.0,0.00014794,2]
[334842083,1723607481555,-985.66,0.00014794,2]
[334842084,1723607481565,-1484.83,0.00014794,2]
[334842085,1723607481574,-558.89,0.00014794,2]
[334842086,1723607481583,-1171.57,0.00014794,2]
[334842087,1723607481592,-500.0,0.00014794,2]
[334842088,1723607481601,-961.68,0.00014794,2]
[334842089,1723607481610,-1433.08,0.00014794,2]
[334842090,1723607481619,-644.74,0.00014794,2]
[334842091,1723607481628,-1605.56,0.00014794,2]
[334842092,1723607481637,-544.66,0.00014794,2]
[334842093,1723607481646,-500.0,0.00014794,2]
[334842094,1723607481655,-500.0,0.00014794,2]
[334842095,1723607481664,-671.88,0.00014794,2]
[334842096,1723607481673,-966.64,0.00014794,2]
[334842097,1723607481682,-1438.91,0.00014794,2]
[334842098,1723607481691,-3279.05,0.00014794,2]
[334842099,1723607481699,-1269.61,0.00014794,2]
[334842100,1723607481709,-2431.77,0.00014794,2]
[334842101,1723607481718,-1897.29,0.00014794,2]